fUSD/lending_fUSD_20260416
["ID","MTS","AMOUNT","RATE_DAILY","PERIOD"]
[420608576,1776325838518,-150.0,8.623e-05,2]
[420608578,1776325838528,-150.0,8.625e-05,2]
[420608580,1776325838543,-150.0,8.626e-05,2]
[420608582,1776325838554,-150.0,8.628e-05,2]
[420608584,1776325838564,-150.0,8.635e-05,2]
[420608586,1776325838574,-150.0,8.636e-05,2]
[420608588,1776325838584,-150.0,8.638e-05,2]
[420608590,1776325838594,-150.0,8.639e-05,2]
[420608593,1776325838605,-150.0,8.641e-05,2]
[420608595,1776325838616,-150.0,8.647e-05,2]
[420608597,1776325838627,-150.0,8.652e-05,2]
[420608598,1776325838637,-150.0,8.653e-05,2]
[420608600,1776325838647,-150.0,8.656e-05,2]
[420608602,1776325838657,-150.0,8.658e-05,2]
[420608604,1776325838667,-150.0,8.659e-05,2]
[420608607,1776325838678,-150.0,8.667e-05,2]
[420608609,1776325838689,-150.0,8.667e-05,2]
[420608611,1776325838700,-150.0,8.67e-05,2]
[420608613,1776325838710,-150.0,8.671e-05,2]
[420608615,1776325838720,-150.0,8.672e-05,2]
[420608617,1776325838730,-150.0,8.676e-05,2]
[420608619,1776325838740,-150.0,8.681e-05,2]
[420608621,1776325838751,-150.0,8.682e-05,2]
[420608624,1776325838762,-150.0,8.683e-05,2]
[420608626,1776325838773,-440.0,8.685e-05,3]
[420608628,1776325838783,-150.0,8.686e-05,2]
[420608630,1776325838792,-150.0,8.688e-05,2]
[420608632,1776325838803,-150.0,8.69e-05,2]
[420608634,1776325838813,-150.0,8.693e-05,2]
[420608636,1776325838824,-150.0,8.695e-05,2]
[420608638,1776325838834,-150.0,8.696e-05,2]
[420608640,1776325838844,-150.0,8.701e-05,2]
[420608642,1776325838855,-150.0,8.701e-05,2]
[420608645,1776325838865,-1000.0,8.704e-05,2]
[420608647,1776325838875,-150.0,8.704e-05,2]
[420608649,1776325838886,-89860.648,8.705e-05,2]
[420608651,1776325838895,-150.0,8.706e-05,2]
[420608653,1776325838905,-150.0,8.708e-05,2]
[420608655,1776325838915,-150.0,8.711e-05,2]
[420608657,1776325838926,-150.0,8.714e-05,2]
[420608659,1776325838940,-150.0,8.715e-05,2]
[420608662,1776325838950,-150.0,8.715e-05,2]
[420608664,1776325838960,-150.0,8.726e-05,2]
[420608666,1776325838970,-150.0,8.726e-05,2]
[420608668,1776325838981,-150.0,8.727e-05,2]
[420608670,1776325838992,-150.0,8.73e-05,2]
[420608672,1776325839003,-150.0,8.733e-05,2]
[420608674,1776325839013,-150.0,8.738e-05,2]
[420608676,1776325839023,-150.0,8.74e-05,2]
[420608679,1776325839033,-150.0,8.745e-05,2]
[420608681,1776325839044,-150.0,8.745e-05,2]
[420608683,1776325839054,-150.0,8.745e-05,2]
[420608685,1776325839065,-150.0,8.745e-05,2]
[420608687,1776325839075,-150.0,8.745e-05,2]
[420608689,1776325839085,-150.0,8.749e-05,2]
[420608691,1776325839095,-150.0,8.751e-05,2]
[420608693,1776325839105,-150.0,8.755e-05,2]
[420608695,1776325839115,-150.0,8.76e-05,2]
[420608697,1776325839126,-150.0,8.76e-05,2]
[420608700,1776325839136,-150.0,8.764e-05,2]
[420608702,1776325839146,-150.0,8.77e-05,2]
[420608704,1776325839156,-150.0,8.77e-05,2]
[420608706,1776325839166,-150.0,8.772e-05,2]
[420608708,1776325839177,-150.0,8.774e-05,2]
[420608710,1776325839187,-150.0,8.775e-05,2]
[420608712,1776325839197,-150.0,8.782e-05,2]
[420608714,1776325839207,-150.0,8.783e-05,2]
[420608716,1776325839219,-150.0,8.784e-05,2]
[420608717,1776325839229,-150.0,8.784e-05,2]
[420608718,1776325839238,-150.0,8.789e-05,2]
[420608719,1776325839248,-150.0,8.79e-05,2]
[420608720,1776325839259,-150.0,8.794e-05,2]
[420608721,1776325839269,-247.78,8.795e-05,2]
[420608722,1776325839279,-150.0,8.799e-05,2]
[420608723,1776325839289,-150.0,8.8e-05,2]
[420608724,1776325839299,-150.0,8.805e-05,2]
[420608725,1776325839309,-150.0,8.805e-05,2]
[420608726,1776325839319,-150.0,8.808e-05,2]
[420608727,1776325839329,-150.0,8.808e-05,2]
[420608728,1776325839339,-150.0,8.814e-05,2]
[420608729,1776325839349,-150.0,8.817e-05,2]
[420608730,1776325839360,-150.0,8.819e-05,2]
[420608731,1776325839370,-150.0,8.82e-05,2]
[420608732,1776325839392,-150.0,8.823e-05,2]
[420608733,1776325839403,-150.0,8.826e-05,2]
[420608734,1776325839414,-500.0,8.827e-05,2]
[420608735,1776325839425,-150.0,8.828e-05,2]
[420608736,1776325839437,-150.0,8.828e-05,2]
[420608737,1776325839448,-150.0,8.834e-05,2]
[420608738,1776325839458,-150.0,8.834e-05,2]
[420608739,1776325839469,-150.0,8.837e-05,2]
[420608740,1776325839479,-269.21200311,8.839e-05,2]
[420608741,1776325839489,-150.0,8.839e-05,2]
[420608742,1776325839500,-208.81,8.84e-05,2]
[420608743,1776325839510,-150.0,8.843e-05,2]
[420608744,1776325839520,-150.0,8.845e-05,2]
[420608745,1776325839531,-150.0,8.849e-05,2]
[420608746,1776325839541,-150.0,8.851e-05,2]
[420608747,1776325839551,-150.0,8.855e-05,2]
[420608748,1776325839562,-150.0,8.857e-05,2]
[420608749,1776325839572,-150.0,8.859e-05,2]
[420608750,1776325839583,-150.0,8.862e-05,2]
[420608751,1776325839593,-150.0,8.862e-05,2]
[420608752,1776325839603,-150.0,8.864e-05,2]
[420608753,1776325839613,-150.0,8.864e-05,2]
[420608754,1776325839624,-150.0,8.87e-05,2]
[420608755,1776325839634,-150.0,8.872e-05,2]
[420608756,1776325839645,-150.0,8.873e-05,2]
[420608757,1776325839655,-150.0,8.874e-05,2]
[420608758,1776325839667,-150.0,8.879e-05,2]
[420608759,1776325839677,-150.0,8.883e-05,2]
[420608760,1776325839688,-150.0,8.884e-05,2]
[420608761,1776325839698,-150.0,8.887e-05,2]
[420608762,1776325839710,-150.0,8.892e-05,2]
[420608763,1776325839720,-150.0,8.894e-05,2]
[420608764,1776325839730,-150.0,8.896e-05,2]
[420608765,1776325839740,-150.0,8.901e-05,2]
[420608766,1776325839751,-150.0,8.901e-05,2]
[420608767,1776325839762,-150.0,8.901e-05,2]
[420608768,1776325839772,-150.0,8.901e-05,2]
[420608769,1776325839782,-150.0,8.901e-05,2]
[420608770,1776325839794,-150.0,8.907e-05,2]
[420608771,1776325839804,-150.0,8.909e-05,2]
[420608772,1776325839815,-150.0,8.911e-05,2]
[420608773,1776325839825,-150.0,8.916e-05,2]
[420608774,1776325839838,-150.0,8.918e-05,2]
[420608775,1776325839848,-150.0,8.92e-05,2]
[420608776,1776325839859,-247.78,8.923e-05,2]
[420608777,1776325839869,-150.0,8.924e-05,2]
[420608778,1776325839879,-150.0,8.929e-05,2]
[420608779,1776325839890,-150.0,8.93e-05,2]
[420608780,1776325839899,-150.0,8.931e-05,2]
[420608781,1776325839909,-150.0,8.933e-05,2]
[420608782,1776325839919,-165.46,8.934e-05,2]
[420608783,1776325839929,-150.0,8.939e-05,2]
[420608784,1776325839939,-150.0,8.939e-05,2]
[420608785,1776325839948,-150.0,8.94e-05,2]
[420608786,1776325839958,-150.0,8.94e-05,2]
[420608787,1776325839969,-150.0,8.941e-05,2]
[420608788,1776325839979,-150.0,8.944e-05,2]
[420608789,1776325839989,-150.0,8.945e-05,2]
[420608790,1776325840004,-150.0,8.947e-05,2]
[420608791,1776325840015,-150.0,8.952e-05,2]
[420608792,1776325840025,-150.0,8.953e-05,2]
[420608793,1776325840035,-150.0,8.958e-05,2]
[420608794,1776325840044,-150.0,8.96e-05,2]
[420608795,1776325840055,-150.0,8.963e-05,2]
[420608796,1776325840065,-150.0,8.966e-05,2]
[420608797,1776325840075,-150.0,8.968e-05,2]
[420608798,1776325840085,-150.0,8.968e-05,2]
[420608799,1776325840095,-150.0,8.975e-05,2]
[420608800,1776325840105,-150.0,8.975e-05,2]
[420608801,1776325840116,-150.0,8.976e-05,2]
[420608802,1776325840125,-150.0,8.979e-05,2]
[420608803,1776325840135,-150.0,8.979e-05,2]
[420608804,1776325840145,-150.0,8.983e-05,2]
[420608805,1776325840155,-150.0,8.984e-05,2]
[420608806,1776325840166,-150.0,8.986e-05,2]
[420608807,1776325840176,-150.0,8.989e-05,2]
[420608808,1776325840187,-150.0,8.995e-05,2]
[420608809,1776325840197,-150.0,8.995e-05,2]
[420608810,1776325840207,-150.0,8.997e-05,2]
[420608811,1776325840217,-150.0,8.998e-05,2]
[420608812,1776325840227,-150.0,9.002e-05,2]
[420608813,1776325840237,-150.0,9.004e-05,2]
[420608814,1776325840247,-500.0,9.006e-05,2]
[420608815,1776325840257,-150.0,9.009e-05,2]
[420608816,1776325840268,-150.0,9.013e-05,2]
[420608817,1776325840279,-150.0,9.014e-05,2]
[420608818,1776325840289,-150.0,9.018e-05,2]
[420608819,1776325840299,-150.0,9.018e-05,2]
[420608820,1776325840310,-150.0,9.02e-05,2]
[420608821,1776325840320,-150.0,9.021e-05,2]
[420608822,1776325840331,-150.0,9.028e-05,2]
[420608823,1776325840341,-150.0,9.029e-05,2]
[420608824,1776325840351,-150.0,9.031e-05,2]
[420608825,1776325840361,-150.0,9.033e-05,2]
[420608826,1776325840371,-150.0,9.033e-05,2]
[420608827,1776325840381,-150.0,9.039e-05,2]
[420608828,1776325840391,-150.0,9.042e-05,2]
[420608829,1776325840401,-150.0,9.043e-05,2]
[420608830,1776325840411,-150.0,9.048e-05,2]
[420608831,1776325840421,-150.0,9.051e-05,2]
[420608832,1776325840431,-150.0,9.054e-05,2]
[420608833,1776325840441,-150.0,9.058e-05,2]
[420608834,1776325840451,-150.0,9.058e-05,2]
[420608835,1776325840461,-150.0,9.058e-05,2]
[420608836,1776325840471,-150.0,9.058e-05,2]
[420608837,1776325840481,-150.0,9.058e-05,2]
[420608838,1776325840490,-150.0,9.062e-05,2]
[420608840,1776325840501,-150.0,9.065e-05,2]
[420608842,1776325840511,-165.19,9.068e-05,2]
[420608845,1776325840521,-150.0,9.07e-05,2]
[420608846,1776325840531,-150.0,9.072e-05,2]
[420608847,1776325840540,-150.0,9.076e-05,2]
[420608849,1776325840550,-150.0,9.076e-05,2]
[420608851,1776325840561,-150.0,9.077e-05,2]
[420608853,1776325840571,-4978.87,9.078e-05,2]
[420608855,1776325840581,-165.19,9.084e-05,2]
[420608857,1776325840592,-150.0,9.087e-05,2]
[420608859,1776325840602,-150.0,9.088e-05,2]
[420608862,1776325840617,-150.0,9.089e-05,2]
[420608864,1776325840627,-150.0,9.092e-05,2]
[420608866,1776325840637,-250.0,9.094e-05,2]
[420608868,1776325840647,-250.0,9.094e-05,2]
[420608870,1776325840656,-250.0,9.094e-05,2]
[420608872,1776325840667,-250.0,9.094e-05,2]
[420608874,1776325840677,-250.0,9.094e-05,2]
[420608876,1776325840686,-250.0,9.094e-05,2]
[420608878,1776325840696,-250.0,9.094e-05,2]
[420608880,1776325840707,-257.0,9.094e-05,2]
[420608882,1776325840717,-150.0,9.094e-05,2]
[420608884,1776325840727,-150.0,9.094e-05,2]
[420608886,1776325840737,-150.0,9.094e-05,2]
[420608888,1776325840747,-150.0,9.094e-05,2]
[420608890,1776325840756,-150.0,9.094e-05,2]
[420608892,1776325840766,-150.0,9.094e-05,2]
[420608894,1776325840776,-152.0,9.094e-05,2]
[420608897,1776325840787,-150.0,9.094e-05,2]
[420608899,1776325840797,-150.0,9.097e-05,2]
[420608901,1776325840807,-150.0,9.099e-05,2]
[420608903,1776325840816,-165.18359708,9.1e-05,2]
[420608905,1776325840826,-150.0,9.102e-05,2]
[420608907,1776325840836,-150.0,9.102e-05,2]
[420608909,1776325840846,-150.0,9.106e-05,2]
[420608911,1776325840856,-150.0,9.108e-05,2]
[420608913,1776325840866,-150.0,9.11e-05,2]
[420608915,1776325840876,-150.0,9.113e-05,2]
[420608917,1776325840886,-150.0,9.114e-05,2]
[420608919,1776325840895,-150.0,9.117e-05,2]
[420608921,1776325840905,-150.0,9.117e-05,2]
[420608923,1776325840916,-150.0,9.117e-05,2]
[420608925,1776325840930,-277.0,9.117e-05,2]
[420608928,1776325840940,-150.0,9.117e-05,2]
[420608930,1776325840949,-150.0,9.12e-05,2]
[420608931,1776325840958,-150.0,9.121e-05,2]
[420608933,1776325840968,-150.0,9.122e-05,2]
[420608934,1776325840977,-150.0,9.126e-05,2]
[420608935,1776325840987,-150.0,9.131e-05,2]
[420608936,1776325840996,-150.0,9.132e-05,2]
[420608937,1776325841006,-150.0,9.133e-05,2]
[420608938,1776325841016,-150.0,9.136e-05,2]
[420608939,1776325841026,-150.0,9.136e-05,2]
[420608940,1776325841036,-150.0,9.136e-05,2]
[420608941,1776325841046,-150.0,9.144e-05,2]
[420608942,1776325841055,-150.0,9.145e-05,2]
[420608943,1776325841069,-150.0,9.147e-05,2]
[420608944,1776325841079,-150.0,9.149e-05,2]
[420608945,1776325841089,-150.0,9.15e-05,2]
[420608946,1776325841099,-150.0,9.155e-05,2]
[420608947,1776325841109,-150.0,9.162e-05,2]
[420608948,1776325841119,-150.0,9.164e-05,2]
[420608949,1776325841130,-150.0,9.165e-05,2]
[420608950,1776325841140,-150.0,9.167e-05,2]
[420608951,1776325841150,-150.0,9.168e-05,2]
[420608952,1776325841159,-150.0,9.175e-05,2]
[420608953,1776325841169,-150.0,9.175e-05,2]
[420608954,1776325841179,-150.0,9.177e-05,2]
[420608955,1776325841188,-150.0,9.178e-05,2]
[420608956,1776325841198,-150.0,9.18e-05,2]
[420608957,1776325841208,-150.0,9.182e-05,2]
[420608958,1776325841218,-150.0,9.182e-05,2]
[420608959,1776325841228,-150.0,9.186e-05,2]
[420608960,1776325841238,-150.0,9.189e-05,2]
[420608961,1776325841249,-150.0,9.191e-05,2]
[420608962,1776325841259,-150.0,9.194e-05,2]
[420608963,1776325841270,-150.0,9.2e-05,2]
[420608964,1776325841281,-150.0,9.201e-05,2]
[420608965,1776325841290,-150.0,9.201e-05,2]
[420608966,1776325841301,-150.0,9.205e-05,2]
[420608967,1776325841312,-150.0,9.206e-05,2]
[420608968,1776325841323,-150.0,9.209e-05,2]
[420608969,1776325841333,-150.0,9.212e-05,2]
[420608970,1776325841343,-150.0,9.214e-05,2]
[420608971,1776325841354,-150.0,9.214e-05,2]
[420608972,1776325841364,-150.0,9.22e-05,2]
[420608973,1776325842118,-150.0,9.221e-05,2]
[420608974,1776325842128,-158.0,9.223e-05,3]
[420608975,1776325842137,-150.0,9.223e-05,2]
[420608976,1776325842147,-150.0,9.223e-05,2]
[420608977,1776325842156,-150.0,9.223e-05,2]
[420608978,1776325842166,-150.0,9.234e-05,2]
[420608979,1776325842176,-150.0,9.236e-05,2]
[420608980,1776325842186,-150.0,9.236e-05,2]
[420608981,1776325842195,-150.0,9.238e-05,2]
[420608982,1776325842204,-150.0,9.239e-05,2]
[420608983,1776325842214,-150.0,9.241e-05,2]
[420608984,1776325842224,-150.0,9.245e-05,2]
[420608985,1776325842234,-150.0,9.246e-05,2]
[420608986,1776325842244,-150.0,9.251e-05,2]
[420608987,1776325842253,-150.0,9.253e-05,2]
[420608988,1776325842263,-150.0,9.253e-05,2]
[420608989,1776325842272,-150.0,9.253e-05,2]
[420608990,1776325842283,-150.0,9.257e-05,2]
[420608991,1776325842293,-150.0,9.257e-05,2]
[420608992,1776325842302,-150.0,9.26e-05,2]
[420608993,1776325842312,-150.0,9.266e-05,2]
[420608994,1776325842321,-150.0,9.267e-05,2]
[420608995,1776325842331,-150.0,9.268e-05,2]
[420608996,1776325842341,-500.0,9.273e-05,2]
[420608997,1776325842350,-150.0,9.276e-05,2]
[420608998,1776325842360,-150.0,9.278e-05,2]
[420608999,1776325842370,-150.0,9.28e-05,2]
[420609001,1776325842379,-150.0,9.281e-05,2]
[420609002,1776325842388,-150.0,9.282e-05,2]
[420609003,1776325842398,-150.0,9.285e-05,2]
[420609004,1776325842408,-150.0,9.291e-05,2]
[420609005,1776325842418,-150.0,9.292e-05,2]
[420609006,1776325842427,-150.0,9.292e-05,2]
[420609007,1776325842437,-20000.02,9.292e-05,2]
[420609008,1776325842446,-2500.0,9.292e-05,2]
[420609009,1776325842456,-193862.79350124,9.292e-05,2]
[420609013,1776325844827,-7057.44259322,9.292e-05,2]
[420609014,1776325844838,-3015.00009,9.292e-05,2]
[420609015,1776325844850,-11436.39000855,9.292e-05,2]
[420609016,1776325844865,-490.0,9.292e-05,2]
[420609017,1776325845128,-689.72524371,9.292e-05,2]
[420609018,1776325845139,-265.16908496,9.292e-05,2]
[420609019,1776325845268,-669.878833,9.292e-05,2]
[420609020,1776325845280,-513.92439638,9.292e-05,2]
[420609021,1776325845331,-549.13511508,9.292e-05,2]
[420609022,1776325845357,-670.86208,9.292e-05,2]
[420609025,1776325845765,-377.65200136,9.292e-05,2]
[420609029,1776325846854,-246.1673,8.351e-05,2]
[420609030,1776325846863,-487.54294716,9.292e-05,2]
[420609031,1776325846892,-538.03210586,9.292e-05,2]
[420609032,1776325846906,-6667.47518771,9.292e-05,2]
[420609035,1776325982066,-261.0,8.603e-05,2]
[420609036,1776325982091,-300.0,8.603e-05,2]
[420609037,1776325982117,-34439.0,8.604e-05,2]
[420609038,1776326004218,-5000.0,8.604e-05,2]
[420609039,1776326007373,500.0,8.355e-05,2]
[420609040,1776326045443,396.0,8.355e-05,3]
[420609041,1776326097945,466.0544,8.378e-05,2]
[420609042,1776326105351,376.0,8.355e-05,3]
[420609043,1776326164989,357.0,8.378e-05,3]
[420609044,1776326226566,340.0,8.378e-05,3]
[420609045,1776326302778,-323.0,8.378e-05,3]
[420609046,1776326350078,306.0,8.378e-05,3]
[420609047,1776326405817,158.0,8.378e-05,3]
[420609048,1776326406067,291.0,8.378e-05,3]
[420609053,1776326533141,277.0,8.378e-05,3]
[420609055,1776326551560,300.0,1e-05,3]
[420609056,1776326589653,263.0,8.378e-05,3]
[420609057,1776326713509,250.0,8.378e-05,3]
[420609058,1776326721015,150.0,7.644e-05,2]
[420609059,1776326721054,150.0,7.856e-05,2]
[420609060,1776326721084,150.0,8.068e-05,2]
[420609061,1776326721135,150.0,8.281e-05,2]
[420609062,1776326721893,150.0,7.644e-05,2]
[420609063,1776326721924,150.0,7.814e-05,2]
[420609064,1776326721957,150.0,7.984e-05,2]
[420609065,1776326721992,150.0,8.153e-05,2]
[420609066,1776326722044,150.0,8.323e-05,2]
[420609067,1776326722120,150.43891779,7.644e-05,2]
[420609068,1776326725337,252.8356564,7.644e-05,2]
[420609069,1776326725598,150.0,7.644e-05,2]
[420609070,1776326726511,150.0,7.644e-05,2]
[420609071,1776326726571,150.0,7.785e-05,2]
[420609072,1776326726651,150.0,7.927e-05,2]
[420609073,1776326726792,150.0,8.068e-05,2]
[420609074,1776326726823,150.0,8.21e-05,2]
[420609075,1776326726865,150.0,8.352e-05,2]
[420609076,1776326727051,150.94695297,7.644e-05,2]
[420609077,1776326730677,151.3419958,7.644e-05,2]
[420609078,1776326738425,151.13714091,7.644e-05,2]
[420609079,1776326739291,150.0,7.644e-05,2]
[420609080,1776326739322,150.0,7.856e-05,2]
[420609081,1776326739376,150.0,8.068e-05,2]
[420609082,1776326739600,150.0,8.281e-05,2]
[420609083,1776326739643,150.0,7.644e-05,2]
[420609084,1776326741323,150.0,7.644e-05,2]
[420609085,1776326741362,150.0,7.814e-05,2]
[420609086,1776326741407,150.0,7.984e-05,2]
[420609087,1776326741439,150.0,8.153e-05,2]
[420609088,1776326741485,150.0,8.323e-05,2]
[420609089,1776326747490,150.0,7.644e-05,2]
[420609090,1776326747555,150.0,7.715e-05,2]
[420609091,1776326747661,150.0,7.856e-05,2]
[420609092,1776326747714,150.0,7.927e-05,2]
[420609093,1776326747787,150.0,7.998e-05,2]
[420609094,1776326747841,150.0,7.785e-05,2]
[420609095,1776326747923,150.0,8.068e-05,2]
[420609096,1776326747983,150.0,8.139e-05,2]
[420609097,1776326748064,150.0,8.21e-05,2]
[420609098,1776326748099,150.0,8.281e-05,2]
[420609099,1776326748153,150.0,8.352e-05,2]
[420609100,1776326765890,237.0,8.378e-05,3]
[420609101,1776326885867,225.0,8.378e-05,3]
[420609103,1776327007142,158.0,8.378e-05,3]
[420609104,1776327007192,214.0,8.378e-05,3]
[420609105,1776327017748,-3899.83242197,8.402e-05,2]
[420609106,1776327017772,-10000.01,8.402e-05,2]
[420609107,1776327017797,-10000.01,8.402e-05,2]
[420609108,1776327019872,-10000.01,8.402e-05,2]
[420609109,1776327023996,-10000.01,8.402e-05,2]
[420609110,1776327024011,-2063.62107803,8.402e-05,2]
[420609132,1776327033111,-150.0,8.422e-05,2]
[420609133,1776327033132,-1200.0,8.43e-05,2]
[420609134,1776327033142,-1200.0,8.43e-05,2]
[420609135,1776327033151,-300.0,8.43e-05,2]
[420609136,1776327033160,-2942.867,8.431e-05,2]
[420609137,1776327033170,-259.556,8.431e-05,2]
[420609138,1776327033180,-224.23637322,8.431e-05,2]
[420609139,1776327033189,-91.66271237,8.468e-05,2]
[420609140,1776327033200,-132.57366085,8.468e-05,2]
[420609141,1776327033210,-183.76037767,8.483e-05,2]
[420609142,1776327035986,-316.23962233,8.483e-05,2]
[420609143,1776327035996,-150.0812423,8.493e-05,2]
[420609144,1776327036005,-272.30637849,8.493e-05,2]
[420609145,1776327036015,-46.17427492,8.493e-05,2]
[420609146,1776327036055,-105.93793068,8.493e-05,2]
[420609147,1776327036064,-162.06714149,8.493e-05,2]
[420609148,1776327036074,-260.65880889,8.493e-05,2]
[420609149,1776327036083,-153.10779314,8.493e-05,2]
[420609150,1776327036093,-157.16768877,8.493e-05,2]
[420609151,1776327036102,-153.35569929,8.493e-05,2]
[420609152,1776327036111,-500.0,8.502e-05,2]
[420609153,1776327036121,-500.0,8.503e-05,2]
[420609154,1776327036130,-500.0,8.503e-05,2]
[420609155,1776327036139,-500.0,8.503e-05,2]
[420609156,1776327036148,-502.13998938,8.503e-05,2]
[420609157,1776327036158,-500.0,8.503e-05,2]
[420609158,1776327036168,-500.0,8.503e-05,2]
[420609159,1776327036177,-500.0,8.503e-05,2]
[420609160,1776327036187,-500.0,8.503e-05,2]
[420609161,1776327036196,-500.0,8.503e-05,2]
[420609162,1776327036205,-500.0,8.503e-05,2]
[420609163,1776327036214,-500.0,8.503e-05,2]
[420609164,1776327036224,-500.0,8.503e-05,2]
[420609165,1776327036233,-500.0,8.503e-05,2]
[420609166,1776327036243,-500.0,8.503e-05,2]
[420609167,1776327036252,-500.0,8.503e-05,2]
[420609168,1776327036262,-500.0,8.503e-05,2]
[420609169,1776327036273,-500.0,8.503e-05,2]
[420609170,1776327036283,-500.0,8.503e-05,2]
[420609171,1776327036293,-500.0,8.503e-05,2]
[420609172,1776327036303,-500.0,8.503e-05,2]
[420609173,1776327036313,-500.0,8.503e-05,2]
[420609174,1776327036323,-500.0,8.503e-05,2]
[420609175,1776327036332,-500.0,8.503e-05,2]
[420609176,1776327036353,-500.0,8.503e-05,2]
[420609177,1776327036363,-500.0,8.503e-05,2]
[420609178,1776327036373,-500.0,8.503e-05,2]
[420609179,1776327036382,-79.11964073,8.503e-05,2]
[420609180,1776327036395,-420.88035927,8.503e-05,2]
[420609181,1776327036404,-500.0,8.503e-05,2]
[420609182,1776327036414,-500.0,8.503e-05,2]
[420609183,1776327036423,-500.0,8.503e-05,2]
[420609184,1776327036433,-500.0,8.503e-05,2]
[420609185,1776327036443,-500.0,8.503e-05,2]
[420609186,1776327036452,-500.0,8.503e-05,2]
[420609187,1776327036462,-500.0,8.503e-05,2]
[420609188,1776327036472,-500.0,8.503e-05,2]
[420609189,1776327036482,-500.0,8.503e-05,2]
[420609190,1776327036492,-500.0,8.503e-05,2]
[420609191,1776327036502,-500.0,8.503e-05,2]
[420609192,1776327036512,-461.67456065,8.503e-05,2]
[420609193,1776327036523,-500.0,8.503e-05,2]
[420609194,1776327036533,-331.35525699,8.503e-05,2]
[420609195,1776327036543,-150.0,8.503e-05,2]
[420609196,1776327036553,-500.0,8.503e-05,2]
[420609197,1776327036563,-600.0,8.503e-05,2]
[420609198,1776327036572,-500.0,8.503e-05,2]
[420609199,1776327036582,-500.0,8.503e-05,2]
[420609200,1776327036592,-500.0,8.503e-05,2]
[420609201,1776327036601,-500.0,8.503e-05,2]
[420609202,1776327036612,-500.0,8.503e-05,2]
[420609203,1776327036622,-500.0,8.503e-05,2]
[420609204,1776327036632,-577.82535789,8.503e-05,2]
[420609205,1776327036642,-500.0,8.503e-05,2]
[420609206,1776327036652,-217.29227619,8.503e-05,2]
[420609207,1776327036662,-457.3466933,8.503e-05,2]
[420609208,1776327036672,-338.26552973,8.503e-05,2]
[420609209,1776327036682,-150.0,8.503e-05,2]
[420609210,1776327036691,-4154.5554,8.504e-05,2]
[420609211,1776327036702,-2671.72169139,8.504e-05,2]
[420609212,1776327036714,-2927.90900861,8.504e-05,2]
[420609213,1776327036724,-6286.47357278,8.504e-05,2]
[420609214,1776327036735,-400.0,8.504e-05,2]
[420609215,1776327036796,-258.87161287,8.504e-05,2]
[420609216,1776327036830,-193356.6202279,8.504e-05,2]
[420609217,1776327036841,-61687.03758099,8.504e-05,2]
[420609218,1776327036853,-56829.37535788,8.504e-05,2]
[420609219,1776327036865,-190484.05394132,8.504e-05,2]
[420609220,1776327036893,-3560.00000002,8.504e-05,2]
[420609221,1776327036905,-1565.63480144,8.504e-05,2]
[420609222,1776327036948,-2414.2214,8.504e-05,2]
[420609223,1776327036960,-816.11829527,8.504e-05,2]
[420609234,1776327039775,-152.0,8.437e-05,7]
[420609235,1776327039786,-439.8159,8.504e-05,2]
[420609242,1776327040322,-1019.64210675,8.504e-05,2]
[420609243,1776327040366,-2875.51583003,8.504e-05,2]
[420609244,1776327040377,-836.8570242,8.504e-05,2]
[420609250,1776327042986,-380.51299992,8.504e-05,2]
[420609251,1776327043041,-6141.03689584,8.504e-05,2]
[420609256,1776327044588,-298.9,8.504e-05,2]
[420609257,1776327044600,-469.3,8.504e-05,2]
[420609258,1776327044646,-669.24032,8.504e-05,2]
[420609266,1776327045930,-560.0,8.504e-05,2]